[Event "Titled Tuesday Blitz February 07 Late 2023"]
[White "Rizzo, Tobias"]
[Black "Necula, Iulian"]
[WhiteFideId "30942691"]
[BlackFideId "1232380"]
[WhiteElo "1867"]
[BlackElo "1851"]
[Result "1-0"]
[Round "07"]
[TimeControl "180+2"]
[Date "2023.02.07"]
[WhiteClock "0:00:04"]
[BlackClock "0:00:46"]

1. d4 {[%clk 0:03:00]}  f5 {[%clk 0:02:59]} 2. e4 {[%clk 0:02:59]}  fxe4 {[%clk 0:02:58]} 3. Nc3 {[%clk 0:02:59]}  Nf6 {[%clk 0:02:58]} 4. Bg5 {[%clk 0:02:58]}  g6 {[%clk 0:02:56]} 5. f3 {[%clk 0:02:54]}  d5 {[%clk 0:02:54]} 6. Bxf6 {[%clk 0:02:51]}  exf6 {[%clk 0:02:53]} 7. fxe4 {[%clk 0:02:52]}  dxe4 {[%clk 0:02:51]} 8. Nxe4 {[%clk 0:02:53]}  Bg7 {[%clk 0:02:50]} 9. Nf3 {[%clk 0:02:51]}  O-O {[%clk 0:02:50]} 10. Bd3 {[%clk 0:02:49]}  f5 {[%clk 0:02:45]} 11. Neg5 {[%clk 0:02:28]}  Re8+ {[%clk 0:02:44]} 12. Kf1 {[%clk 0:02:14]}  Bf6 {[%clk 0:01:50]} 13. Bc4+ {[%clk 0:02:10]}  Kg7 {[%clk 0:01:49]} 14. h4 {[%clk 0:02:04]}  h6 {[%clk 0:01:48]} 15. Nh3 {[%clk 0:01:56]}  Be6 {[%clk 0:01:46]} 16. Bxe6 {[%clk 0:01:39]}  Rxe6 {[%clk 0:01:47]} 17. Nf4 {[%clk 0:01:39]}  Re4 {[%clk 0:01:43]} 18. g3 {[%clk 0:01:32]}  Nc6 {[%clk 0:01:42]} 19. d5 {[%clk 0:01:18]}  Ne5 {[%clk 0:01:40]} 20. Ne6+ {[%clk 0:01:17]}  Kf7 {[%clk 0:01:32]} 21. Nxd8+ {[%clk 0:01:17]}  Rxd8 {[%clk 0:01:33]} 22. Kg2 {[%clk 0:00:54]}  Nxf3 {[%clk 0:01:27]} 23. Qxf3 {[%clk 0:00:54]}  Rxd5 {[%clk 0:01:24]} 24. Rad1 {[%clk 0:00:54]}  Rde5 {[%clk 0:01:22]} 25. Rd7+ {[%clk 0:00:47]}  Re7 {[%clk 0:01:19]} 26. Rxe7+ {[%clk 0:00:43]}  Bxe7 {[%clk 0:01:20]} 27. Rd1 {[%clk 0:00:42]}  Bd6 {[%clk 0:01:20]} 28. Qb3+ {[%clk 0:00:40]}  Kf6 {[%clk 0:01:17]} 29. Kf3 {[%clk 0:00:30]}  b6 {[%clk 0:01:13]} 30. Qc3+ {[%clk 0:00:20]}  Be5 {[%clk 0:01:09]} 31. Qc6+ {[%clk 0:00:19]}  Bd6 {[%clk 0:01:08]} 32. Rd2 {[%clk 0:00:15]}  Re6 {[%clk 0:01:03]} 33. Qd7 {[%clk 0:00:14]}  Re7 {[%clk 0:01:02]} 34. Qd8 {[%clk 0:00:09]}  Ke6 {[%clk 0:01:01]} 35. Qg8+ {[%clk 0:00:08]}  Kf6 {[%clk 0:00:55]} 36. Re2 {[%clk 0:00:08]}  Rxe2 {[%clk 0:00:48]} 37. Kxe2 {[%clk 0:00:09]}  g5 {[%clk 0:00:49]} 38. Qh8+ {[%clk 0:00:08]}  Kg6 {[%clk 0:00:49]} 39. Kf3 {[%clk 0:00:06]}  g4+ {[%clk 0:00:48]} 40. Kf2 {[%clk 0:00:05]}  Be5 {[%clk 0:00:46]} 41. Qxe5 {[%clk 0:00:04]} 1-0


[Site "https://www.chess.com"]

[Event "Titled Tuesday Blitz February 07 Late 2023"]
[White "Antonova, Nadezhda"]
[Black "Hoffmann, Asa"]
[WhiteFideId "14700182"]
[BlackFideId "2001470"]
[WhiteElo "1945"]
[BlackElo "2185"]
[Result "0-1"]
[Round "07"]
[TimeControl "180+2"]
[Date "2023.02.07"]
[WhiteClock "0:00:01"]
[BlackClock "0:01:12"]

1. Nf3 {[%clk 0:02:59]}  d6 {[%clk 0:02:57]} 2. d4 {[%clk 0:02:59]}  Bg4 {[%clk 0:02:56]} 3. c4 {[%clk 0:02:57]}  Nd7 {[%clk 0:02:56]} 4. Nbd2 {[%clk 0:02:54]}  Ngf6 {[%clk 0:02:55]} 5. e4 {[%clk 0:02:53]}  e5 {[%clk 0:02:55]} 6. d5 {[%clk 0:02:52]}  Nc5 {[%clk 0:02:54]} 7. Qe2 {[%clk 0:02:45]}  a5 {[%clk 0:02:54]} 8. h3 {[%clk 0:02:45]}  Bh5 {[%clk 0:02:53]} 9. Qe3 {[%clk 0:02:34]}  Be7 {[%clk 0:02:50]} 10. Bd3 {[%clk 0:02:32]}  O-O {[%clk 0:02:45]} 11. O-O {[%clk 0:02:32]}  Bg6 {[%clk 0:02:40]} 12. b3 {[%clk 0:02:30]}  Nfd7 {[%clk 0:02:39]} 13. Bb2 {[%clk 0:02:28]}  Nxd3 {[%clk 0:02:37]} 14. Qxd3 {[%clk 0:02:28]}  Nc5 {[%clk 0:02:37]} 15. Qe3 {[%clk 0:02:25]}  f5 {[%clk 0:02:37]} 16. exf5 {[%clk 0:02:23]}  Bxf5 {[%clk 0:02:36]} 17. a3 {[%clk 0:02:19]}  e4 {[%clk 0:02:33]} 18. Nd4 {[%clk 0:02:17]}  Bg5 {[%clk 0:02:33]} 19. Qe2 {[%clk 0:02:06]}  Bg6 {[%clk 0:02:29]} 20. b4 {[%clk 0:02:00]}  axb4 {[%clk 0:02:27]} 21. axb4 {[%clk 0:02:00]}  Nd3 {[%clk 0:02:25]} 22. Bc3 {[%clk 0:01:58]}  Rxa1 {[%clk 0:02:22]} 23. Bxa1 {[%clk 0:01:55]}  Qe7 {[%clk 0:02:19]} 24. Ne6 {[%clk 0:01:51]}  Bxd2 {[%clk 0:02:13]} 25. Nxf8 {[%clk 0:01:39]}  Bxb4 {[%clk 0:02:03]} 26. Ne6 {[%clk 0:01:30]}  c6 {[%clk 0:01:53]} 27. Nxg7 {[%clk 0:01:16]}  cxd5 {[%clk 0:01:52]} 28. cxd5 {[%clk 0:01:16]}  Qg5 {[%clk 0:01:52]} 29. Ne6 {[%clk 0:01:09]}  Qxd5 {[%clk 0:01:49]} 30. Qg4 {[%clk 0:00:33]}  Qf5 {[%clk 0:01:35]} 31. Qxf5 {[%clk 0:00:21]}  Bxf5 {[%clk 0:01:35]} 32. Nd4 {[%clk 0:00:22]}  Bg6 {[%clk 0:01:33]} 33. Rb1 {[%clk 0:00:13]}  b6 {[%clk 0:01:31]} 34. Ne2 {[%clk 0:00:10]}  Bc5 {[%clk 0:01:30]} 35. Bd4 {[%clk 0:00:10]}  Kf7 {[%clk 0:01:27]} 36. Be3 {[%clk 0:00:09]}  Ke6 {[%clk 0:01:26]} 37. Nf4+ {[%clk 0:00:08]}  Nxf4 {[%clk 0:01:25]} 38. Bxf4 {[%clk 0:00:08]}  d5 {[%clk 0:01:25]} 39. Re1 {[%clk 0:00:06]}  Kf5 {[%clk 0:01:25]} 40. Be3 {[%clk 0:00:06]}  d4 {[%clk 0:01:25]} 41. Bc1 {[%clk 0:00:04]}  h5 {[%clk 0:01:23]} 42. Kf1 {[%clk 0:00:03]}  Bf7 {[%clk 0:01:21]} 43. Rd1 {[%clk 0:00:03]}  Bc4+ {[%clk 0:01:19]} 44. Ke1 {[%clk 0:00:03]}  b5 {[%clk 0:01:18]} 45. Bd2 {[%clk 0:00:03]}  b4 {[%clk 0:01:18]} 46. Rc1 {[%clk 0:00:03]}  e3 {[%clk 0:01:16]} 47. Rxc4 {[%clk 0:00:03]}  exd2+ {[%clk 0:01:15]} 48. Kxd2 {[%clk 0:00:03]}  Bd6 {[%clk 0:01:13]} 49. Rxd4 {[%clk 0:00:03]}  Ke5 {[%clk 0:01:13]} 50. Rc4 {[%clk 0:00:02]}  Kd5 {[%clk 0:01:13]} 51. Rh4 {[%clk 0:00:02]}  Bc5 {[%clk 0:01:12]} 52. Rxh5+ {[%clk 0:00:01]}  Kc4 {[%clk 0:01:12]} 0-1


[Site "https://www.chess.com"]

[Event "Titled Tuesday Blitz February 07 Late 2023"]
[White "Jarocka, Liwia"]
[Black "Alexikov, Alexander"]
[WhiteFideId "21807558"]
[BlackFideId "14103958"]
[WhiteElo "2225"]
[BlackElo "2209"]
[Result "1-0"]
[Round "07"]
[TimeControl "180+2"]
[Date "2023.02.07"]
[WhiteClock "0:00:46"]
[BlackClock "0:00:07"]

1. e4 {[%clk 0:03:00]}  c5 {[%clk 0:02:58]} 2. Nf3 {[%clk 0:03:00]}  d6 {[%clk 0:02:58]} 3. d4 {[%clk 0:03:00]}  cxd4 {[%clk 0:02:58]} 4. Nxd4 {[%clk 0:03:01]}  Nf6 {[%clk 0:02:58]} 5. Nc3 {[%clk 0:03:01]}  a6 {[%clk 0:02:57]} 6. Be3 {[%clk 0:03:01]}  Ng4 {[%clk 0:02:56]} 7. Bc1 {[%clk 0:02:59]}  Nc6 {[%clk 0:02:51]} 8. f3 {[%clk 0:02:58]}  Qb6 {[%clk 0:02:40]} 9. fxg4 {[%clk 0:02:35]}  Qxd4 {[%clk 0:02:34]} 10. Be2 {[%clk 0:02:34]}  Qxd1+ {[%clk 0:02:25]} 11. Bxd1 {[%clk 0:02:35]}  e6 {[%clk 0:02:22]} 12. O-O {[%clk 0:02:35]}  Be7 {[%clk 0:02:15]} 13. Bf4 {[%clk 0:02:34]}  b5 {[%clk 0:02:10]} 14. a3 {[%clk 0:02:32]}  Bb7 {[%clk 0:02:09]} 15. Bf3 {[%clk 0:02:31]}  Rc8 {[%clk 0:02:08]} 16. Rfd1 {[%clk 0:02:31]}  Ne5 {[%clk 0:02:05]} 17. Rab1 {[%clk 0:02:09]}  g5 {[%clk 0:02:02]} 18. Bg3 {[%clk 0:02:07]}  h6 {[%clk 0:01:49]} 19. h3 {[%clk 0:02:05]}  Rc7 {[%clk 0:01:44]} 20. Rd4 {[%clk 0:01:55]}  O-O {[%clk 0:01:43]} 21. Rbd1 {[%clk 0:01:53]}  Rfc8 {[%clk 0:01:39]} 22. Bxe5 {[%clk 0:01:44]}  dxe5 {[%clk 0:01:38]} 23. Rd7 {[%clk 0:01:44]}  Kf8 {[%clk 0:01:37]} 24. Nb1 {[%clk 0:01:33]}  Ke8 {[%clk 0:01:24]} 25. Rxc7 {[%clk 0:01:32]}  Rxc7 {[%clk 0:01:24]} 26. c3 {[%clk 0:01:33]}  a5 {[%clk 0:01:21]} 27. Kh2 {[%clk 0:01:22]}  b4 {[%clk 0:01:09]} 28. axb4 {[%clk 0:01:18]}  axb4 {[%clk 0:01:09]} 29. Kg3 {[%clk 0:01:17]}  Bc5 {[%clk 0:01:06]} 30. Rc1 {[%clk 0:01:14]}  Be3 {[%clk 0:01:05]} 31. Rd1 {[%clk 0:01:13]}  Rd7 {[%clk 0:00:54]} 32. Rxd7 {[%clk 0:01:08]}  Kxd7 {[%clk 0:00:54]} 33. cxb4 {[%clk 0:01:09]}  Ba6 {[%clk 0:00:51]} 34. Nc3 {[%clk 0:01:07]}  Bd3 {[%clk 0:00:51]} 35. Be2 {[%clk 0:01:04]}  Bxe2 {[%clk 0:00:49]} 36. Nxe2 {[%clk 0:01:03]}  Kc6 {[%clk 0:00:48]} 37. Kf3 {[%clk 0:00:55]}  Bd2 {[%clk 0:00:48]} 38. Nc3 {[%clk 0:00:54]}  Bc1 {[%clk 0:00:47]} 39. Na4 {[%clk 0:00:54]}  Kb5 {[%clk 0:00:46]} 40. Nc5 {[%clk 0:00:53]}  Bxb2 {[%clk 0:00:43]} 41. Nd7 {[%clk 0:00:53]}  Kxb4 {[%clk 0:00:40]} 42. Nf6 {[%clk 0:00:53]}  Kc4 {[%clk 0:00:35]} 43. Ng8 {[%clk 0:00:53]}  Ba3 {[%clk 0:00:27]} 44. Nxh6 {[%clk 0:00:52]}  f6 {[%clk 0:00:27]} 45. Ng8 {[%clk 0:00:52]}  f5 {[%clk 0:00:25]} 46. gxf5 {[%clk 0:00:49]}  exf5 {[%clk 0:00:25]} 47. exf5 {[%clk 0:00:49]}  Kd3 {[%clk 0:00:25]} 48. Nf6 {[%clk 0:00:49]}  Be7 {[%clk 0:00:21]} 49. Ne4 {[%clk 0:00:48]}  Bd8 {[%clk 0:00:21]} 50. g4 {[%clk 0:00:47]}  Kd4 {[%clk 0:00:20]} 51. f6 {[%clk 0:00:46]}  Kd3 {[%clk 0:00:18]} 52. f7 {[%clk 0:00:46]}  Be7 {[%clk 0:00:16]} 53. Nxg5 {[%clk 0:00:46]}  Bf8 {[%clk 0:00:15]} 54. Ne4 {[%clk 0:00:46]}  Be7 {[%clk 0:00:14]} 55. g5 {[%clk 0:00:46]}  Bf8 {[%clk 0:00:14]} 56. h4 {[%clk 0:00:46]}  Be7 {[%clk 0:00:13]} 57. h5 {[%clk 0:00:47]}  Bf8 {[%clk 0:00:11]} 58. h6 {[%clk 0:00:47]}  Kd4 {[%clk 0:00:09]} 59. h7 {[%clk 0:00:46]}  Bg7 {[%clk 0:00:09]} 60. g6 {[%clk 0:00:46]}  Kd3 {[%clk 0:00:08]} 61. h8=Q {[%clk 0:00:46]}  Bxh8 {[%clk 0:00:07]} 62. f8=Q {[%clk 0:00:46]} 1-0


[Site "https://www.chess.com"]

[Event "Titled Tuesday Blitz February 07 Late 2023"]
[White "Jesusesmifuerza"]
[Black "Winkels, Marcel"]
[BlackFideId "1003887"]
[WhiteElo "2043"]
[BlackElo "1960"]
[Result "1-0"]
[Round "07"]
[TimeControl "180+2"]
[Date "2023.02.07"]
[WhiteClock "0:01:04"]
[BlackClock "0:00:01"]

1. d4 {[%clk 0:02:57]}  Nf6 {[%clk 0:02:58]} 2. Nc3 {[%clk 0:02:57]}  d5 {[%clk 0:02:56]} 3. Bf4 {[%clk 0:02:58]}  a6 {[%clk 0:02:54]} 4. e3 {[%clk 0:02:56]}  g6 {[%clk 0:02:54]} 5. h3 {[%clk 0:02:51]}  Bg7 {[%clk 0:02:54]} 6. Nf3 {[%clk 0:02:52]}  O-O {[%clk 0:02:54]} 7. Bd3 {[%clk 0:02:45]}  Nbd7 {[%clk 0:02:53]} 8. b4 {[%clk 0:02:43]}  c6 {[%clk 0:02:43]} 9. O-O {[%clk 0:02:42]}  a5 {[%clk 0:02:27]} 10. a3 {[%clk 0:02:42]}  axb4 {[%clk 0:02:25]} 11. axb4 {[%clk 0:02:43]}  Rxa1 {[%clk 0:02:24]} 12. Qxa1 {[%clk 0:02:44]}  Nh5 {[%clk 0:02:18]} 13. Bh2 {[%clk 0:02:43]}  Re8 {[%clk 0:02:17]} 14. Na4 {[%clk 0:02:32]}  e5 {[%clk 0:02:15]} 15. Nc5 {[%clk 0:02:23]}  e4 {[%clk 0:02:08]} 16. Bxe4 {[%clk 0:02:10]}  dxe4 {[%clk 0:02:07]} 17. Nd2 {[%clk 0:02:11]}  Nxc5 {[%clk 0:02:02]} 18. bxc5 {[%clk 0:02:11]}  Qg5 {[%clk 0:01:54]} 19. Kh1 {[%clk 0:02:10]}  f5 {[%clk 0:01:46]} 20. Qa2+ {[%clk 0:01:55]}  Be6 {[%clk 0:01:39]} 21. Qa7 {[%clk 0:01:56]}  Qe7 {[%clk 0:01:36]} 22. Bd6 {[%clk 0:01:50]}  Qd7 {[%clk 0:01:33]} 23. Rb1 {[%clk 0:01:47]}  f4 {[%clk 0:01:25]} 24. Rxb7 {[%clk 0:01:42]}  Qc8 {[%clk 0:01:13]} 25. Bxf4 {[%clk 0:01:41]}  Qa8 {[%clk 0:00:52]} 26. Qb6 {[%clk 0:01:19]}  Qa1+ {[%clk 0:00:44]} 27. Kh2 {[%clk 0:01:18]}  Nxf4 {[%clk 0:00:43]} 28. exf4 {[%clk 0:01:19]}  Qxd4 {[%clk 0:00:41]} 29. Qxc6 {[%clk 0:01:06]}  Qxd2 {[%clk 0:00:38]} 30. Qxe8+ {[%clk 0:01:05]}  Bf8 {[%clk 0:00:33]} 31. Qxe6+ {[%clk 0:01:05]}  Kh8 {[%clk 0:00:28]} 32. Qf7 {[%clk 0:01:05]}  Bxc5 {[%clk 0:00:01]} 33. Qxh7# {[%clk 0:01:04]} 1-0


[Site "https://www.chess.com"]

[Event "Titled Tuesday Blitz February 07 Late 2023"]
[White "Souza, Gustavo Horokoski De"]
[Black "Dushyant Sharma"]
[WhiteFideId "2146584"]
[BlackFideId "25065130"]
[WhiteElo "1943"]
[BlackElo "2355"]
[Result "1/2-1/2"]
[Round "07"]
[TimeControl "180+2"]
[Date "2023.02.07"]
[WhiteClock "0:00:06"]
[BlackClock "0:00:25"]

1. d4 {[%clk 0:02:51]}  d5 {[%clk 0:02:59]} 2. c4 {[%clk 0:02:50]}  e6 {[%clk 0:03:00]} 3. Nc3 {[%clk 0:02:51]}  Be7 {[%clk 0:02:59]} 4. cxd5 {[%clk 0:02:49]}  exd5 {[%clk 0:02:59]} 5. Nf3 {[%clk 0:02:49]}  c6 {[%clk 0:03:00]} 6. Bf4 {[%clk 0:02:44]}  Nf6 {[%clk 0:03:01]} 7. e3 {[%clk 0:02:44]}  O-O {[%clk 0:03:02]} 8. Bd3 {[%clk 0:02:44]}  Be6 {[%clk 0:02:55]} 9. h3 {[%clk 0:02:42]}  Nbd7 {[%clk 0:02:55]} 10. O-O {[%clk 0:02:41]}  Rc8 {[%clk 0:02:55]} 11. Rc1 {[%clk 0:02:40]}  Re8 {[%clk 0:02:56]} 12. a3 {[%clk 0:02:28]}  Nf8 {[%clk 0:02:53]} 13. b4 {[%clk 0:02:27]}  Ng6 {[%clk 0:02:54]} 14. Bh2 {[%clk 0:02:27]}  Bd6 {[%clk 0:02:51]} 15. Bxd6 {[%clk 0:02:24]}  Qxd6 {[%clk 0:02:52]} 16. Qb3 {[%clk 0:02:23]}  Ne4 {[%clk 0:02:51]} 17. b5 {[%clk 0:02:10]}  f5 {[%clk 0:02:51]} 18. bxc6 {[%clk 0:02:06]}  bxc6 {[%clk 0:02:52]} 19. Na4 {[%clk 0:01:57]}  f4 {[%clk 0:02:48]} 20. Nc5 {[%clk 0:01:55]}  Bf7 {[%clk 0:02:47]} 21. Nb7 {[%clk 0:01:39]}  Qc7 {[%clk 0:02:42]} 22. Nc5 {[%clk 0:01:26]}  Nxc5 {[%clk 0:02:38]} 23. Rxc5 {[%clk 0:01:18]}  fxe3 {[%clk 0:02:39]} 24. fxe3 {[%clk 0:01:17]}  Rxe3 {[%clk 0:02:36]} 25. Qc2 {[%clk 0:01:17]}  Nf4 {[%clk 0:02:29]} 26. Bxh7+ {[%clk 0:01:12]}  Kh8 {[%clk 0:02:30]} 27. Ne5 {[%clk 0:01:10]}  Rxe5 {[%clk 0:02:17]} 28. dxe5 {[%clk 0:00:52]}  Qxe5 {[%clk 0:02:18]} 29. Qf2 {[%clk 0:00:36]}  Ne2+ {[%clk 0:02:10]} 30. Kh1 {[%clk 0:00:29]}  Ng3+ {[%clk 0:02:10]} 31. Kg1 {[%clk 0:00:29]}  Ne2+ {[%clk 0:01:50]} 32. Kh1 {[%clk 0:00:29]}  Ng3+ {[%clk 0:01:50]} 33. Kg1 {[%clk 0:00:29]}  Nxf1 {[%clk 0:01:51]} 34. Qxf7 {[%clk 0:00:28]}  Kxh7 {[%clk 0:01:36]} 35. Qxf1 {[%clk 0:00:23]}  Qe3+ {[%clk 0:01:30]} 36. Qf2 {[%clk 0:00:23]}  Qxf2+ {[%clk 0:01:29]} 37. Kxf2 {[%clk 0:00:24]}  Kg6 {[%clk 0:01:29]} 38. Ke3 {[%clk 0:00:24]}  Kf6 {[%clk 0:01:30]} 39. Kd4 {[%clk 0:00:24]}  Ke6 {[%clk 0:01:30]} 40. g4 {[%clk 0:00:23]}  Kd6 {[%clk 0:01:30]} 41. Rc1 {[%clk 0:00:22]}  Rb8 {[%clk 0:01:30]} 42. Rc3 {[%clk 0:00:18]}  Rb1 {[%clk 0:01:30]} 43. Rf3 {[%clk 0:00:17]}  c5+ {[%clk 0:01:28]} 44. Kc3 {[%clk 0:00:16]}  Ke5 {[%clk 0:01:28]} 45. Rf5+ {[%clk 0:00:16]}  Ke4 {[%clk 0:01:28]} 46. Rf7 {[%clk 0:00:15]}  d4+ {[%clk 0:01:27]} 47. Kc2 {[%clk 0:00:14]}  Rh1 {[%clk 0:01:25]} 48. Rxg7 {[%clk 0:00:14]}  Rxh3 {[%clk 0:01:25]} 49. Rxa7 {[%clk 0:00:14]}  c4 {[%clk 0:01:24]} 50. Ra4 {[%clk 0:00:09]}  Kd5 {[%clk 0:01:22]} 51. Ra5+ {[%clk 0:00:08]}  Ke4 {[%clk 0:01:22]} 52. Ra4 {[%clk 0:00:08]}  c3 {[%clk 0:01:21]} 53. Rb4 {[%clk 0:00:06]}  Ke3 {[%clk 0:01:16]} 54. a4 {[%clk 0:00:05]}  Rg3 {[%clk 0:01:11]} 55. a5 {[%clk 0:00:05]}  Rxg4 {[%clk 0:01:11]} 56. Rb8 {[%clk 0:00:02]}  Rg5 {[%clk 0:01:06]} 57. Re8+ {[%clk 0:00:02]}  Kf2 {[%clk 0:01:05]} 58. Kd3 {[%clk 0:00:02]}  Rg4 {[%clk 0:00:57]} 59. Re2+ {[%clk 0:00:01]}  Kf1 {[%clk 0:00:53]} 60. Re5 {[%clk 0:00:01]}  Rg8 {[%clk 0:00:47]} 61. a6 {[%clk 0:00:01]}  Ra8 {[%clk 0:00:45]} 62. Kxd4 {[%clk 0:00:02]}  Rxa6 {[%clk 0:00:38]} 63. Rc5 {[%clk 0:00:02]}  Rd6+ {[%clk 0:00:38]} 64. Kc4 {[%clk 0:00:03]}  Ke1 {[%clk 0:00:34]} 65. Kxc3 {[%clk 0:00:02]}  Kd1 {[%clk 0:00:34]} 66. Kc4 {[%clk 0:00:03]}  Kc2 {[%clk 0:00:33]} 67. Rd5 {[%clk 0:00:03]}  Rc6+ {[%clk 0:00:32]} 68. Kd4 {[%clk 0:00:04]}  Rh6 {[%clk 0:00:29]} 69. Re5 {[%clk 0:00:04]}  Rh4+ {[%clk 0:00:28]} 70. Kd5 {[%clk 0:00:04]}  Kd3 {[%clk 0:00:28]} 71. Rf5 {[%clk 0:00:04]}  Rd4+ {[%clk 0:00:27]} 72. Ke5 {[%clk 0:00:04]}  Ra4 {[%clk 0:00:27]} 73. Rf1 {[%clk 0:00:04]}  Ra5+ {[%clk 0:00:26]} 74. Kd6 {[%clk 0:00:04]}  Ra2 {[%clk 0:00:25]} 75. Rf3+ {[%clk 0:00:04]}  Kc2 {[%clk 0:00:24]} 76. Rh3 {[%clk 0:00:05]}  Kb2 {[%clk 0:00:25]} 77. Rh2+ {[%clk 0:00:05]}  Ka3 {[%clk 0:00:25]} 78. Rxa2+ {[%clk 0:00:06]}  Kxa2 {[%clk 0:00:25]} 1/2-1/2


[Site "https://www.chess.com"]

[Event "Titled Tuesday Blitz February 07 Late 2023"]
[White "Ardila, Oscar Humberto"]
[Black "Womacka, Mathias"]
[WhiteFideId "4404742"]
[BlackFideId "4611390"]
[WhiteElo "1982"]
[BlackElo "2396"]
[Result "0-1"]
[Round "07"]
[TimeControl "180+2"]
[Date "2023.02.07"]
[WhiteClock "0:01:01"]
[BlackClock "0:01:10"]

1. d4 {[%clk 0:02:57]}  Nf6 {[%clk 0:02:58]} 2. c4 {[%clk 0:02:56]}  e6 {[%clk 0:02:59]} 3. Nc3 {[%clk 0:02:55]}  Bb4 {[%clk 0:02:58]} 4. Bd2 {[%clk 0:02:55]}  c5 {[%clk 0:02:57]} 5. dxc5 {[%clk 0:02:55]}  O-O {[%clk 0:02:54]} 6. Nf3 {[%clk 0:02:55]}  Nc6 {[%clk 0:02:48]} 7. e3 {[%clk 0:02:54]}  Bxc5 {[%clk 0:02:44]} 8. Be2 {[%clk 0:02:54]}  b6 {[%clk 0:02:43]} 9. O-O {[%clk 0:02:53]}  Bb7 {[%clk 0:02:43]} 10. Rc1 {[%clk 0:02:53]}  Rc8 {[%clk 0:02:40]} 11. Nb5 {[%clk 0:02:52]}  a6 {[%clk 0:02:36]} 12. Nc3 {[%clk 0:02:51]}  Qc7 {[%clk 0:02:35]} 13. Na4 {[%clk 0:02:51]}  Be7 {[%clk 0:02:24]} 14. c5 {[%clk 0:02:44]}  b5 {[%clk 0:02:21]} 15. Nb6 {[%clk 0:02:39]}  Rcd8 {[%clk 0:02:21]} 16. b4 {[%clk 0:02:37]}  d6 {[%clk 0:02:14]} 17. Nd4 {[%clk 0:02:30]}  dxc5 {[%clk 0:02:09]} 18. Nxc6 {[%clk 0:02:23]}  Bxc6 {[%clk 0:02:10]} 19. bxc5 {[%clk 0:02:23]}  Ne4 {[%clk 0:02:07]} 20. Rc2 {[%clk 0:02:16]}  Nxd2 {[%clk 0:02:02]} 21. Rxd2 {[%clk 0:02:15]}  Rxd2 {[%clk 0:02:00]} 22. Qxd2 {[%clk 0:02:15]}  Bxc5 {[%clk 0:02:01]} 23. Rc1 {[%clk 0:02:05]}  Qxb6 {[%clk 0:01:46]} 24. Qc3 {[%clk 0:02:02]}  Rc8 {[%clk 0:01:41]} 25. Qxc5 {[%clk 0:02:01]}  Qxc5 {[%clk 0:01:42]} 26. Rxc5 {[%clk 0:02:00]}  Bd7 {[%clk 0:01:42]} 27. Rxc8+ {[%clk 0:01:57]}  Bxc8 {[%clk 0:01:43]} 28. Kf1 {[%clk 0:01:58]}  Kf8 {[%clk 0:01:44]} 29. Ke1 {[%clk 0:01:58]}  Ke7 {[%clk 0:01:43]} 30. Kd2 {[%clk 0:01:58]}  Kd6 {[%clk 0:01:43]} 31. Kc3 {[%clk 0:01:58]}  Kc5 {[%clk 0:01:44]} 32. a3 {[%clk 0:01:57]}  e5 {[%clk 0:01:38]} 33. Bd3 {[%clk 0:01:55]}  h6 {[%clk 0:01:37]} 34. f4 {[%clk 0:01:53]}  exf4 {[%clk 0:01:36]} 35. exf4 {[%clk 0:01:53]}  a5 {[%clk 0:01:34]} 36. Be4 {[%clk 0:01:52]}  Be6 {[%clk 0:01:30]} 37. g3 {[%clk 0:01:48]}  Bd5 {[%clk 0:01:30]} 38. Bd3 {[%clk 0:01:45]}  b4+ {[%clk 0:01:30]} 39. axb4+ {[%clk 0:01:45]}  axb4+ {[%clk 0:01:30]} 40. Kb2 {[%clk 0:01:43]}  Kd4 {[%clk 0:01:31]} 41. Bb5 {[%clk 0:01:28]}  Ke3 {[%clk 0:01:31]} 42. f5 {[%clk 0:01:16]}  Kf3 {[%clk 0:01:29]} 43. Kc2 {[%clk 0:01:09]}  Kg2 {[%clk 0:01:28]} 44. Kd2 {[%clk 0:01:03]}  Kxh2 {[%clk 0:01:27]} 45. g4 {[%clk 0:01:03]}  Kg3 {[%clk 0:01:27]} 46. Be2 {[%clk 0:01:03]}  Bf3 {[%clk 0:01:24]} 47. Bc4 {[%clk 0:01:02]}  Bxg4 {[%clk 0:01:23]} 48. Bxf7 {[%clk 0:01:01]}  Bxf5 {[%clk 0:01:23]} 49. Ke3 {[%clk 0:01:01]}  g6 {[%clk 0:01:13]} 50. Kd4 {[%clk 0:01:01]}  h5 {[%clk 0:01:11]} 51. Ke5 {[%clk 0:01:01]}  h4 {[%clk 0:01:10]} 0-1


[Site "https://www.chess.com"]